Cogmind - Beta 15 @@@ ROGUE MODE // 2025.06.11 @ 22:04:25 Player: DZKane Result: Destroyed by B-99 Colossus with Multirail Performance ------------- Evolutions (9) 4500 Regions Visited (17) 3400 Robots Destroyed (332) 1660 Value Destroyed (16539) 16539 Prototype IDs (39) 780 Alien Tech Used (0) 0 Bonus (11637) 11637 TOTAL SCORE: 38516 Bonus ------- Triggered High Security 500 High Alert Combat Kills 6858 Follower Combat Kills 1924 Entered DSFs 500 Registered with UFD 300 Met Optimus in HQ 500 Built Enhanced Grunts 300 A7 Reached Mainframe 300 Scanned by Researcher 500 Friendly Fire -45 Cogmind --------- Core Integrity 0/1600 Matter 287/300 Energy 85/100 System Corruption 7% Temperature Cool (0) Movement Core (50) Location -1/Access Parts ------- > --- POWER (3) -------- (None) > --- PROPULSION (8) --- (None) > --- UTILITY (10) ----- Advanced Signal Interpreter Authchip [R/NC] > --- WEAPON (4) ------- Lance > --- INVENTORY (5) ---- Light Quantum Reactor Energy Well (350) Experimental Matter Compressor (500) Peak State ------------ > --- POWER ------------ Reinforced Fission Core Particle Reactor Quantum Reactor > --- PROPULSION ------- Armored Medium Treads Armored Medium Treads Heavy Treads Centrium Heavy Treads > --- UTILITY ---------- Experimental Cooling System Experimental Coolant Injector Huge Storage Unit Compact Battery Experimental Optical Array Centrium Medium Armor Plating Advanced Thermal Shield Advanced Force Field > --- WEAPON ----------- Advanced Variable Charge Gun Advanced KE Penetrator Advanced KE Penetrator Force Lance > --- INVENTORY -------- Particle Reactor Armored Medium Treads Armored Medium Treads Centrium Wheel Advanced Cryofiber Web Advanced Heat Sink Experimental Matter Compressor Experimental Matter Compressor Advanced Sensor Array Heavy Armor Plating Centrium Medium Armor Plating Advanced Thermal Shield Advanced Remote Force Field System Shield Long-range Tractor Beam HERF Cannon Nova Cannon Railgun Neutron Missile Launcher Advanced Datajack [Rating: 162] Favorites ----------- Power Reinforced Fission Core Engine Reinforced Deuterium Engine Power Core Reinforced Fission Core Reactor Particle Reactor Propulsion Armored Medium Treads Treads Armored Medium Treads Leg Improved Carbon-fiber Leg Wheel Compact Wheel Hover Unit Antigrav System Utility Experimental Optical Array Device Experimental Cooling System Storage High-capacity Storage Unit Processor Experimental Optical Array Hackware Hacking Suite Protection Centrium Medium Armor Plating Weapon Enhanced Autogun Energy Gun Advanced Variable Charge Gun Energy Cannon Cooled Particle Cannon Ballistic Gun Enhanced Autogun Launcher Neutron Missile Launcher Special Weapon Plasma Cutter Impact Weapon Power Maul Slashing Weapon Axe Piercing Weapon Force Lance Build | -11 -10 -9 -9 -8 -7 -7 -7 -7 -5 -4 -4 -4 -4 -3 -2 -2 -1 ------- Run | Yrd Mat Mat Min Mat Fac Sto Rec Scr Fac Fac Ext Cet Arc Res Res DSF Acc Slots Evolved 18 | . . 2 . 2 2 . . . 4 2 . . . 2 2 . 2 Power 2 | . . . . . 1 . . . . . . . . 1 . . . Propulsion 6 | . . 1 . . 1 . . . 1 1 . . . . 2 . . Utility 8 | . . . . 2 . . . . 2 1 . . . 1 . . 2 Weapon 2 | . . 1 . . . . . . 1 . . . . . . . . Parts Attached 236 | 2 8 12 3 21 17 8 1 2 12 54 36 5 7 27 1 16 4 Power 30 | . 2 2 . 2 3 1 . . 2 8 5 . 2 2 . 1 . Engine 4 | . 1 1 . 2 . . . . . . . . . . . . . Core 14 | . 1 1 . . 3 1 . . 2 4 2 . . . . . . Reactor 12 | . . . . . . . . . . 4 3 . 2 2 . 1 . Propulsion 75 | 2 1 2 1 10 6 . . . 3 22 18 . . 5 1 4 . Treads 30 | 2 1 1 1 10 1 . . . . . 10 . . 4 . . . Leg 27 | . . . . . 4 . . . 3 12 3 . . . 1 4 . Wheel 14 | . . 1 . . 1 . . . . 6 5 . . 1 . . . Hover 4 | . . . . . . . . . . 4 . . . . . . . Flight . | . . . . . . . . . . . . . . . . . . Utility 77 | . 3 1 2 7 3 2 1 2 5 13 6 3 3 17 . 7 2 Device 32 | . 1 . 1 3 1 2 . . 3 6 3 . 2 8 . 1 1 Storage 6 | . 2 . . 1 . . . 1 . . . 2 . . . . . Processor 13 | . . . . 1 1 . . . 1 2 1 . 1 1 . 5 . Hackware 10 | . . . . . . . . . 1 1 1 . . 5 . 1 1 Protection 16 | . . 1 1 2 1 . 1 1 . 4 1 1 . 3 . . . Artifact . | . . . . . . . . . . . . . . . . . . Weapon 54 | . 2 7 . 2 5 5 . . 2 11 7 2 2 3 . 4 2 Energy Gun 5 | . . . . . . 2 . . . . 1 1 1 . . . . Energy Cannon 15 | . . . . . . 2 . . 1 6 2 1 . 1 . 1 1 Ballistic Gun 22 | . 2 6 . 2 2 . . . . 4 3 . 1 2 . . . Ballistic Cannon . | . . . . . . . . . . . . . . . . . . Launcher 4 | . . 1 . . 1 . . . 1 . 1 . . . . . . Special Weapon 1 | . . . . . . 1 . . . . . . . . . . . Impact Weapon 1 | . . . . . 1 . . . . . . . . . . . . Slashing Weapon 2 | . . . . . 1 . . . . . . . . . . 1 . Piercing Weapon 4 | . . . . . . . . . . 1 . . . . . 2 1 Special Melee Weapon . | . . . . . . . . . . . . . . . . . . Unidentified Prototypes 1 | . . 1 . . . . . . . . . . . . . . . Corrupted Parts 3 | . . . . . . . . . . . . . 3 . . . . System Corruption 8 | . . . . . . . . . . . . . 8 . . . . Parts Lost 76 | . 2 . 2 . 1 1 . . 1 26 3 . . 27 . 6 7 Power 8 | . 1 . . . . . . . . 2 1 . . 4 . . . Propulsion 28 | . . . 1 . . . . . 1 13 1 . . 8 . 4 . Utility 24 | . . . 1 . 1 1 . . . 4 . . . 9 . 2 6 Weapon 16 | . 1 . . . . . . . . 7 1 . . 6 . . 1 Highest Loss Streak 17 | . 1 . 1 . 1 1 . . 1 7 2 . . 17 . 6 6 To Critical Strikes 1 | . . . . . . . . . . . . . . 1 . . . Average Backups 18 | 6 10 14 14 17 18 18 19 18 15 14 16 22 23 20 5 5 4 Power . | 1 1 1 1 . . . . . . . . . 1 . . . . Propulsion 2 | 4 4 3 1 2 1 1 1 1 . . 1 2 3 3 . . . Utility 9 | . 1 4 4 6 7 8 8 9 8 9 10 12 12 12 5 3 2 Weapon 5 | 1 3 4 6 7 8 8 8 6 5 3 3 6 5 4 . 1 1 Tool/Special . | . . . . . . . . . . . . . . . . . . Unused Backups 58 | . 6 10 . 8 8 1 1 4 . 2 5 2 3 5 . . 3 Power 3 | . . 1 . 1 . . . . . . . . . . . . 1 Propulsion 10 | . 2 4 . 1 2 . . . . . 1 . . . . . . Utility 24 | . 2 2 . 2 3 . . 2 . 2 4 1 1 3 . . 2 Weapon 19 | . 2 3 . 4 3 1 1 2 . . . 1 1 1 . . . Tool/Special 2 | . . . . . . . . . . . . . 1 1 . . . Average Slot Usage (%) 92 | . 98 98 99 99 91 99 100 100 97 89 93 89 88 83 10 49 24 Engine 3 | . 6 1 11 9 7 7 7 7 1 . . . . . . . . Core 4 | . 7 9 . . 1 7 7 7 9 6 6 5 5 3 . . . Reactor 2 | . . . . . . . . . . 3 3 5 5 7 . 2 . Treads 17 | . 28 22 32 26 24 . . . . . 13 26 26 18 4 . . Leg 7 | . . . . . 1 30 30 30 28 17 8 . . . 2 14 . Wheel 1 | . . 9 . . 1 . . . . 4 7 . . . . . . Device 9 | . 12 4 1 13 8 9 7 7 9 7 9 9 9 13 4 5 3 Storage 6 | . 14 11 11 9 7 7 7 7 5 5 5 5 5 5 . . . Processor 8 | . . . . 4 7 7 7 7 10 8 14 15 15 9 . 16 12 Hackware 1 | . . . . . . . . . 1 7 2 . . 3 . 1 6 Protection 5 | . . 6 9 9 5 4 6 7 4 3 3 5 5 3 . . . Energy Cannon 6 | . . . . . . 9 15 15 14 12 5 7 9 6 . 1 . Ballistic Gun 9 | . 28 32 33 27 18 1 . . . 1 6 . . 3 . . . Impact Weapon 1 | . . . . . . 7 7 7 5 2 . . . . . . . Piercing Weapon 2 | . . . . . . . . . . . 5 5 5 3 . 3 1 Peak Build Rating 162 | 6 10 23 24 34 52 57 57 61 82 109 134 142 144 162 27 155 41 Average Rating 85 | 6 8 14 22 31 37 54 56 59 76 88 121 139 139 147 25 116 32 On Entrance 56 | 6 6 10 23 23 34 52 57 56 61 82 109 134 142 141 18 27 36 Naked Turns . | . . . . . . . . . . . . . . . . . . Heaviest Build 196 | 11 29 43 43 70 75 83 85 130 91 125 166 166 172 196 . 38 13 Greatest Support 240 | 40 40 60 60 60 80 72 72 72 94 110 178 178 178 204 3 240 3 Greatest Overweight (x) 57 | . . 4 . 1 2 1 1 1 1 3 7 . 57 5 . . 4 Average Overweight (x) 1 | . . 2 . . . . 1 1 . 1 1 . 11 . . . . Largest Inventory Capacity 25 | 8 15 15 15 20 20 20 20 25 25 20 25 25 25 25 5 5 5 Average Capacity 20 | 8 13 15 15 18 20 20 20 21 20 20 20 25 25 24 5 5 5 Most Carried 25 | 6 15 15 15 20 20 20 20 23 22 20 25 25 25 25 5 5 5 Average Carried 19 | 6 10 14 14 17 19 19 19 20 20 19 20 24 24 22 5 4 4 Final Capacity 25 | 8 15 15 15 20 20 20 20 25 20 20 25 25 25 5 5 5 5 Final Carried 25 | 6 15 15 14 20 20 20 20 23 20 20 25 25 25 5 5 5 3 Class Distribution -------------------- 27% | Commander-Tank 22% | Mutant 17% | Scavenger-Tank 11% | Scavenger-Gunner 8% | Tank 3% | Gunner Dominant Class ---------------- Mutant | -10/Materials Tank | -9/Materials Tank | -9/Mines Scavenger-Gunner | -8/Materials Scavenger-Mutant | -7/Factory Mutant | -7/Storage Mutant | -7/Recycling Mutant | -7/Scraptown Gunner | -5/Factory Scavenger-Tank | -4/Factory Commander-Tank | -4/Extension Scavenger-Tank | -4/Cetus Commander-Tank | -4/Archives Scavenger-Tank | -3/Research Mutant | -2/Research Gladiator | -2/DSF Mutant | -1/Access Resources | -11 -10 -9 -9 -8 -7 -7 -7 -7 -5 -4 -4 -4 -4 -3 -2 -2 -1 ----------- Run | Yrd Mat Mat Min Mat Fac Sto Rec Scr Fac Fac Ext Cet Arc Res Res DSF Acc Matter Collected 12277 | 220 293 478 362 1680 390 528 21 233 239 1103 2280 40 136 4098 . 170 6 Remotely 2524 | . . . . . . . . . . . 85 . . 2439 . . . Salvage Created 15778 | . 365 506 135 1662 400 248 394 . 569 3006 2829 130 276 5123 . 135 . Parts 637 | . 26 34 4 81 15 7 9 . 21 98 98 5 22 213 . 4 . Haulers Intercepted 14 | . . 1 . 5 . . . . . 1 6 . . 1 . . . Recyclers Shooed 9 | . 2 1 . 1 . . . . . . 1 . . 4 . . . Parts Field Recycled . | . . . . . . . . . . . . . . . . . . Retrieved Matter . | . . . . . . . . . . . . . . . . . . Parts Self-Destructed . | . . . . . . . . . . . . . . . . . . Prevented . | . . . . . . . . . . . . . . . . . . Kills | -11 -10 -9 -9 -8 -7 -7 -7 -7 -5 -4 -4 -4 -4 -3 -2 -2 -1 ------- Run | Yrd Mat Mat Min Mat Fac Sto Rec Scr Fac Fac Ext Cet Arc Res Res DSF Acc Combat Hostiles Destroyed 249 | . 11 11 4 25 12 2 4 . 11 46 19 1 . 101 . 2 . Melee 5 | . . . . . . . . . . 1 1 . . 1 . 2 . Guns 109 | . 11 9 4 25 9 . . . . 2 14 . . 35 . . . Cannons 41 | . . . . . . 1 2 . 8 26 . . . 4 . . . AOE 78 | . . 2 . . 3 . . . 2 10 3 . . 58 . . . Classes Destroyed 24 | . 2 4 2 7 1 . . . . 2 1 . . 5 . . . Worker 12 | . . 2 1 2 . . . . . 3 1 . . 3 . . . Builder 8 | . . . . 1 . . . . . 2 2 . . 3 . . . Tunneler 4 | . . . 1 . . . . . . 1 1 . . 1 . . . Hauler 14 | . . 1 . 5 . . . . . 1 6 . . 1 . . . Recycler 12 | . . . . 2 . 2 2 . . 1 5 . . . . . . Carrier 1 | . . . . . . . . . . . 1 . . . . . . Mechanic 8 | . . . . . . . . . . 2 . . . 6 . . . Operator 12 | . . . . 1 . . . . 1 1 1 . 8 . . . . Watcher 11 | . . 3 . 3 . . . . . . 2 1 . 2 . . . Swarmer 25 | . 3 3 . 6 8 . . . . 4 . . . . . 1 . Saboteur 3 | . . . . . . . . . . . . . . 3 . . . Grunt 110 | . 8 5 2 9 . . . . 7 23 8 . . 48 . . . Brawler 6 | . . . . 1 . . . . . . . . . 5 . . . Duelist 9 | . . . . 1 . . . . 1 1 . . . 6 . . . Protector 4 | . . . . . . . . . . . . . . 4 . . . Sentry 32 | . . 3 . 6 3 1 4 . . 3 8 . . 4 . . . Demolisher 3 | . . . 2 . . . . . . . 1 . . . . . . Specialist 4 | . . . . . . . . . . . . . . 3 . 1 . Hunter 18 | . . . . 1 . 1 . . 1 6 1 . . 8 . . . Programmer 30 | . . . . . 1 . . . 2 8 . . . 19 . . . Heavy 1 | . . . . 1 . . . . . . . . . . . . . Behemoth 1 | . . . . . . . . . . 1 . . . . . . . Cetus Guard 1 | . . . . . . . . . . . . 1 . . . . . Investigator 1 | . . . . . . . . . . . . . . 1 . . . Executioner 1 | . . . . . . . . . . . . . . 1 . . . Thug 1 | . . . . . . . . . . . 1 . . . . . . Best Kill Streak 54 | . 3 5 2 7 4 1 1 . 7 7 4 1 2 54 . 1 . Combat Bots Only 48 | . 3 3 2 6 4 2 1 . 7 7 3 1 . 48 . 1 . Max Kills in Single Turn 6 | . 1 3 1 2 2 1 1 . 2 3 2 1 1 6 . 1 . Gunslinging . | . . . . . . . . . . . . . . . . . . Exploded 6 | . . 2 . . 2 . . . 2 2 2 . . 6 . . . Melee 1 | . . . . . . . . . . 1 1 . . 1 . 1 . Uniques/NPCs Destroyed . | . . . . . . . . . . . . . . . . . . Combat | -11 -10 -9 -9 -8 -7 -7 -7 -7 -5 -4 -4 -4 -4 -3 -2 -2 -1 -------- Run | Yrd Mat Mat Min Mat Fac Sto Rec Scr Fac Fac Ext Cet Arc Res Res DSF Acc Hostile Shots Fired 2431 | . 71 40 15 98 130 40 117 . 52 378 153 . 8 895 . 220 214 Missed 726 | . 17 9 1 22 38 12 37 . 21 127 64 . 2 229 . 87 60 Hits 1705 | . 54 31 14 76 92 28 80 . 31 251 89 . 6 666 . 133 154 Melee 45 | . . . . 1 . . . . . . . . . 44 . . . Projectile 1660 | . 54 31 14 75 92 28 80 . 31 251 89 . 6 622 . 133 154 AOE 13 | . . . 8 . . . . . . 1 3 . . 1 . . . Critical Strikes 95 | . 2 3 . 3 1 . . . . 21 3 . . 51 . 3 8 Actively Blocked 1 | . . . . . . . . . . . . . . 1 . . . Part Disruptions 2 | . . . . . . . . . . . . . . 2 . . . Damage Taken 25217 | . 673 420 388 1125 1013 247 624 . 580 4871 1746 27 77 8491 . 3035 1900 Core 4477 | . 134 41 18 96 115 46 43 . 18 693 84 . . 1150 . 437 1602 Absorbed by Shields 4218 | . . . . . . . . . . . 144 . 80 3994 . . . Reduced by Siege Mode 318 | . . . . . . . . . . . . . . 318 . . . Redirected to Shielding 33 | . . . . . . . . . . . . . . 33 . . . Ignored by Resistances 2046 | . . . . 40 20 11 . . . 70 264 . . 1641 . . . Regen/Repaired (Parts) 650 | . . 180 . 222 . . . . . . . . . 248 . . . Core Remaining (%) 65 | 100 46 . 85 82 . . . 70 98 . . . 32 11 . 69 . Volleys Fired 657 | . 52 36 15 108 36 12 9 . 21 132 76 5 1 153 . . 1 Largest 4 | . 2 3 3 3 3 2 2 . 3 3 3 2 2 4 . . 1 Hottest 271 | . 40 63 75 75 75 150 60 . 90 255 225 225 198 271 . . 120 Shots Fired 1720 | . 105 106 45 322 91 23 19 . 59 360 204 10 4 371 . . 1 Gun 1162 | . 105 105 45 322 87 4 . . . 44 183 1 . 266 . . . Cannon 491 | . . . . . . 19 19 . 58 307 16 9 4 58 . . 1 Launcher 67 | . . 1 . . 4 . . . 1 9 5 . . 47 . . . Special . | . . . . . . . . . . . . . . . . . . Kinetic 1117 | . 105 105 45 322 87 . . . . 44 182 . . 227 . . . Thermal 488 | . . . . . . 23 19 . 58 307 1 1 . 78 . . 1 Explosive 67 | . . 1 . . 4 . . . 1 9 5 . . 47 . . . Electromagnetic 48 | . . . . . . . . . . . 16 9 4 19 . . . Robot Hit Streak 26 | . 12 12 16 13 11 8 14 . 6 16 11 6 2 26 . . . Robot Miss Streak 7 | . 3 4 4 7 3 3 1 . 5 4 3 3 3 3 . . . Penetration Max 2 | . . . . . . . . . . 1 2 . . 1 . . . Secondary Targets 19 | . 1 1 . 3 1 . . . . . 3 . . 10 . . . Max Gunslinging Chain 1 | . 1 1 . 1 1 . . . . . 1 . . 1 . . . Shots Hit Robots 1195 | . 76 68 22 194 62 20 28 . 34 226 162 8 18 274 . 3 . Core Hits 720 | . 26 31 7 65 22 6 5 . 26 152 85 3 8 282 . 2 . Critical Kills 17 | . . . . 1 . . . . . 4 3 . . 9 . . . Critical Parts Destroyed 39 | . 1 2 . 4 . 1 3 . . 1 4 . . 23 . . . Critical Strikes 69 | . 1 2 . 5 . 1 4 . . 5 12 . 3 36 . . . Meltdown 5 | . . . . . . . . . . 4 . . . 1 . . . Destroy 47 | . 1 2 . 5 . . . . . . 7 . . 32 . . . Corrupt 2 | . . . . . . . . . . . 2 . . . . . . Smash 6 | . . . . . . 1 4 . . 1 . . . . . . . Impale 9 | . . . . . . . . . . . 3 . 3 3 . . . Melee Attacks 204 | . . . . . 19 10 11 . 22 20 38 1 18 45 . 4 16 Impact 55 | . . . . . . 10 11 . 22 12 . . . . . . . Slashing 27 | . . . . . 19 . . . . 6 . . . . . 2 . Piercing 122 | . . . . . . . . . . 2 38 1 18 45 . 2 16 Sneak Attacks 38 | . . . . . . 1 4 . 1 1 13 . 12 5 . 1 . Combat Hostiles 3 | . . . . . . . 2 . . . . . . . . 1 . Follow-up Attacks . | . . . . . . . . . . . . . . . . . . Damage Inflicted 51037 | . 792 979 392 3272 1390 579 1030 . 1537 9151 6079 255 1231 24157 . 193 . Guns 16255 | . 792 859 392 3272 1119 59 . . . 669 3468 . . 5625 . . . Cannons 10341 | . . . . . . 436 454 . 802 6094 394 224 72 1865 . . . Explosions 19838 | . . 120 . . 271 . . . 470 2225 786 . . 15966 . . . Melee 4586 | . . . . . . 84 576 . 265 163 1431 31 1159 684 . 193 . Ramming 17 | . . . . . . . . . . . . . . 17 . . . Kinetic 15156 | . 792 859 392 3272 1119 . . . . 669 3468 . . 4585 . . . Thermal 11657 | . . . . . . 495 454 . 802 6094 . . . 3812 . . . Explosive 18393 | . . 120 . . 271 . . . 470 2225 786 . . 14521 . . . Electromagnetic 1228 | . . . . . . . . . . . 394 224 72 538 . . . Impact 1009 | . . . . . . 84 576 . 265 84 . . . . . . . Slashing 181 | . . . . . . . . . . 79 . . . . . 102 . Piercing 3396 | . . . . . . . . . . . 1431 31 1159 684 . 91 . Highest Corruption 30 | . 4 . . 2 2 2 2 . . 8 8 8 8 30 . . 7 Average Corruption 5 | . 3 . . 2 1 2 2 . . 4 8 8 5 13 . . 3 Corruption Purged 8 | . . . . . . . . . . . . . 8 . . . . Corruption Blocked . | . . . . . . . . . . . . . . . . . . Effects 277 | . 18 . . 28 8 6 11 . . 40 78 13 17 57 . . 1 Message Errors 64 | . 5 . . 4 2 2 2 . . 13 16 5 6 9 . . . Matter Fused 57 | . 6 . . 7 2 1 3 . . 5 14 3 3 13 . . . Heat Flow Errors 38 | . 3 . . 5 2 . . . . 5 16 . 3 4 . . . Energy Discharges 24 | . . . . 3 . 2 . . . 4 7 2 1 5 . . . Parts Rejected 7 | . . . . . 1 . . . . 1 . . . 4 . . 1 Parts Fused 2 | . . . . . . 1 . . . . 1 . . . . . . Data Loss (minor) 40 | . 2 . . 5 . . 3 . . 7 14 2 1 6 . . . Data Loss (major) 13 | . 1 . . 2 . . 1 . . 1 3 . 1 4 . . . Misfires 11 | . 1 . . . 1 . 1 . . 1 3 1 2 1 . . . Alerts 2 | . . . . . . . 1 . . . 1 . . . . . . Weapon Failures 19 | . . . . 2 . . . . . 3 3 . . 11 . . . Overload Shots 7 | . . . . . . . . . 1 4 1 1 . . . . . Overflow Damage 1841 | . . . . . 13 84 297 . 64 252 148 27 324 632 . . . Projectiles 205 | . . . . . . . . . . 136 32 . . 37 . . . Explosions 572 | . . . . . 13 . . . . 32 14 . . 513 . . . Melee 1064 | . . . . . . 84 297 . 64 84 102 27 324 82 . . . Knockbacks . | . . . . . . . . . . . . . . . . . . Impact . | . . . . . . . . . . . . . . . . . . Kinetic . | . . . . . . . . . . . . . . . . . . Secondary . | . . . . . . . . . . . . . . . . . . Self-Inflicted Damage 289 | . . . . . . . . . . 88 . . . 201 . . . Shots 9 | . . . . . . . . . . 4 . . . 5 . . . Rammed 4 | . . . . . . . . . . . . . . 4 . . . Targets Rammed 4 | . . . . . . . . . . . . . . 4 . . . Kicked . | . . . . . . . . . . . . . . . . . . Crushed . | . . . . . . . . . . . . . . . . . . Highest Temperature 450 | . 259 90 233 231 207 54 . . . 241 258 276 138 450 . . 16 Average Temperature 75 | . 39 29 105 70 42 29 . . . 96 89 91 52 79 . . 12 Received Heat Transfer 3602 | . 381 216 36 315 114 36 210 . 186 978 319 . 4 807 . . . Effects 2 | . . . . . . . . . . . . . . 2 . . . Shutdowns 2 | . . . . . . . . . . . . . . 2 . . . Siege Activations 8 | . . . . . . . . . . . . . . 8 . . . Total Turns 513 | . . . . . . . . . . . . . . 513 . . . Longest Duration 294 | . . . . . . . . . . . . . . 294 . . . Martial Activations . | . . . . . . . . . . . . . . . . . . Shielding Activations . | . . . . . . . . . . . . . . . . . . Robots Disrupted 4 | . . . . . . . . . . . . . . 4 . . . Combat Hostiles 4 | . . . . . . . . . . . . . . 4 . . . Robots Corrupted 9 | . . . . . . . 2 . 2 1 1 1 . 2 . . . Combat Hostiles 7 | . . . . . . . 2 . 1 . 1 1 . 2 . . . Parts Fried 16 | . . . . . . . 5 . 4 . 3 1 . 3 . . . Impact Corruptions 14 | . . . . . . 3 7 . 3 1 . . . . . . . Robots Melted 9 | . . . . . . 1 . . . 7 . . . 1 . . . Combat Hostiles 9 | . . . . . . 1 . . . 7 . . . 1 . . . Parts Melted 44 | . . . . . . 2 1 . 4 31 1 . . 5 . . . Heat Transferred 13320 | . . . . . . 642 629 . 1036 7487 . . . 3526 . . . Parts Sabotaged . | . . . . . . . . . . . . . . . . . . Parts Stolen . | . . . . . . . . . . . . . . . . . . Parts Stripped . | . . . . . . . . . . . . . . . . . . Power Chain Reactions 13 | . . . . . . . . . . . . . . 13 . . . Alert | -11 -10 -9 -9 -8 -7 -7 -7 -7 -5 -4 -4 -4 -4 -3 -2 -2 -1 ------- Run | Yrd Mat Mat Min Mat Fac Sto Rec Scr Fac Fac Ext Cet Arc Res Res DSF Acc Maximum Alert Level 5 | . . . . 1 . . . . . 2 4 3 2 5 5 4 3 Low Security (%) 64 | 100 100 100 100 72 100 100 100 . 100 16 . . 85 43 . . . Level 1 14 | . . . . 27 . . . . . 45 39 . 13 1 . . . Level 2 10 | . . . . . . . . . . 38 51 39 . 2 . . . Level 3 2 | . . . . . . . . . . . 2 60 . 5 . . 100 Level 4 4 | . . . . . . . . . . . 7 . . 16 . 100 . Level 5 . | . . . . . . . . . . . . . . . 100 . . High Security 3 | . . . . . . . . . . . . . . 28 . . . Max Security . | . . . . . . . . . . . . . . . . . . Peak Influence 3723 | . 105 88 36 238 170 67 72 . 176 679 1238 769 418 3723 2018 1586 915 Initial 2002 | . . . 21 . 104 62 1 . . 79 328 689 257 . 2002 1513 915 Average 316 | . 38 29 3 138 66 20 16 . 53 371 485 713 60 1177 2011 1537 875 Influence Increases 11281 | . 395 355 132 872 328 121 294 . 359 1731 1690 165 261 4449 26 73 30 Destroy 0b10 Robot/C 5800 | . 220 220 100 500 240 40 80 . 220 920 760 80 80 2300 . 40 . Destroy 0b10 Robot/NC 470 | . . 30 10 70 . 10 10 . 5 55 100 5 40 135 . . . Destroy Leader 1072 | . 50 68 20 146 60 20 . . 50 182 94 . . 382 . . . Allied During Kill 1323 | . . . 2 . . . . . . . 551 55 120 595 . . . Successful Hack 221 | . 35 11 . 44 5 . 22 . . . 9 . . 69 26 . . Select Force Hacks 210 | . 30 . . . . . 180 . . . . . . . . . . Disable Machine 390 | . . . . 30 . 45 . . . 150 30 15 15 90 . . 15 Anti-Garrison Action 150 | . . . . . . . . . . . . . . 150 . . . Destroy Structure 1270 | . . 11 . 7 23 6 2 . 84 364 146 10 6 608 . 3 . Lose Combat Pursuer 375 | . 60 15 . 75 . . . . . 60 . . . 120 . 30 15 Influence Decreases 10466 | . 393 301 188 642 420 254 287 12 197 1223 1128 753 905 888 1569 565 741 Entered New Map 4285 | . . 2 35 . 126 76 4 12 . 83 342 543 387 . 1559 505 611 Time Decay 4678 | . 318 221 113 642 294 168 283 . 187 580 636 170 518 478 10 . 60 Lost Part 730 | . . . 20 . . 10 . . 10 260 30 . . 270 . 60 70 Lost Ally 320 | . . . 20 . . . . . . . 120 40 . 140 . . . Purge Threat 453 | . 75 78 . . . . . . . 300 . . . . . . . Squads Dispatched 68 | . 2 1 . 2 1 1 . . 6 17 3 . . 34 . . 1 Investigation 15 | . 2 1 . 1 . . . . 4 5 1 . . 1 . . . Extermination 10 | . . . . . 1 . . . 1 4 . . . 4 . . . Reinforcement 10 | . . . . 1 . 1 . . 1 4 1 . . 1 . . 1 Assault 29 | . . . . . . . . . . 1 1 . . 27 . . . Garrison 4 | . . . . . . . . . . 3 . . . 1 . . . Intercept . | . . . . . . . . . . . . . . . . . . Searches Triggered . | . . . . . . . . . . . . . . . . . . Construction Impeded . | . . . . . . . . . . . . . . . . . . Haulers Reinforced 1 | . . . . . . . . . . 1 . . . . . . . Active Scanning Responses . | . . . . . . . . . . . . . . . . . . Cargo Convoy Interrupts 1 | . . . . . . . . . . . . . . 1 . . . Stealth | -11 -10 -9 -9 -8 -7 -7 -7 -7 -5 -4 -4 -4 -4 -3 -2 -2 -1 --------- Run | Yrd Mat Mat Min Mat Fac Sto Rec Scr Fac Fac Ext Cet Arc Res Res DSF Acc Distress Signals 15 | . 2 2 . 4 . . . . . . 1 1 . 5 . . . Communications Jammed 75 | . . . . . . . . . . . . . . 75 . . . Distress Signals 75 | . . . . . . . . . . . . . . 75 . . . Times Spotted 426 | . 17 19 5 44 12 2 4 . 16 60 36 5 16 170 . 13 7 Peak Tracking Total 19 | . 4 6 3 6 4 2 1 . 4 6 5 5 2 19 . 9 6 Tactical Retreats 18 | . 2 1 . 4 . . . . . 3 . . . 5 . 2 1 Traps | -11 -10 -9 -9 -8 -7 -7 -7 -7 -5 -4 -4 -4 -4 -3 -2 -2 -1 ------- Run | Yrd Mat Mat Min Mat Fac Sto Rec Scr Fac Fac Ext Cet Arc Res Res DSF Acc Traps Triggered 5 | . 2 . . 2 . . . . . . . . . 1 . . . Indirectly . | . . . . . . . . . . . . . . . . . . Trap Hack Attempts . | . . . . . . . . . . . . . . . . . . Triggered . | . . . . . . . . . . . . . . . . . . Disarmed . | . . . . . . . . . . . . . . . . . . Reprogrammed . | . . . . . . . . . . . . . . . . . . Reused . | . . . . . . . . . . . . . . . . . . Traps Extracted . | . . . . . . . . . . . . . . . . . . Installed . | . . . . . . . . . . . . . . . . . . Triggered . | . . . . . . . . . . . . . . . . . . Most Traps Carried 2 | . . . . . . . . 2 2 2 2 2 . . . . . Machines | -11 -10 -9 -9 -8 -7 -7 -7 -7 -5 -4 -4 -4 -4 -3 -2 -2 -1 ---------- Run | Yrd Mat Mat Min Mat Fac Sto Rec Scr Fac Fac Ext Cet Arc Res Res DSF Acc Machines Disabled 29 | . . . . 2 . 3 . . . 10 4 1 1 7 . . 1 Max in Single Turn 6 | . . . . 1 . 1 . . . 6 1 1 . 1 . . 1 Garrison Access 3 | . . . . 1 1 . . . . . . . . 1 . . . Machines Repaired . | . . . . . . . . . . . . . . . . . . Machines Dismantled 1 | . . . . . . 1 . . . . . . . . . . . Machines Sabotaged . | . . . . . . . . . . . . . . . . . . Overloaded Fab Kills . | . . . . . . . . . . . . . . . . . . Hacking | -11 -10 -9 -9 -8 -7 -7 -7 -7 -5 -4 -4 -4 -4 -3 -2 -2 -1 --------- Run | Yrd Mat Mat Min Mat Fac Sto Rec Scr Fac Fac Ext Cet Arc Res Res DSF Acc Machines Accessed 70 | . 9 5 . 10 3 3 12 3 4 8 3 1 . 6 3 . . Terminals 39 | . 7 4 . 6 2 3 6 . . 2 2 1 . 3 3 . . Fabricators . | . . . . . . . . . . . . . . . . . . Repair Stations 5 | . . 1 . 1 . . . . . 1 . . . 2 . . . Recycling Units 19 | . 2 . . . . . 6 . 4 5 1 . . 1 . . . Scanalyzers 2 | . . . . 2 . . . . . . . . . . . . . Garrison Access 2 | . . . . 1 1 . . . . . . . . . . . . Total Hacks 178 | . 21 23 . 32 6 6 16 14 7 17 5 2 . 22 7 . . Successful 104 | . 11 11 . 21 2 . 11 14 4 10 3 . . 14 3 . . Failed 74 | . 10 12 . 11 4 6 5 . 3 7 2 2 . 8 4 . . Catastrophic 10 | . . . . 2 . 1 . . . 2 1 2 . 2 . . . Database Lockouts . | . . . . . . . . . . . . . . . . . . Manual 87 | . 20 10 . 13 1 1 8 . 7 9 3 1 . 8 6 . . Terminals 97 | . 16 15 . 19 5 6 10 . . 4 4 2 . 9 7 . . Fabricators . | . . . . . . . . . . . . . . . . . . Repair Stations 29 | . . 8 . 5 . . . . . 4 . . . 12 . . . Recycling Units 29 | . 5 . . . . . 6 . 7 9 1 . . 1 . . . Scanalyzers 7 | . . . . 7 . . . . . . . . . . . . . Garrison Access 2 | . . . . 1 1 . . . . . . . . . . . . Terminal Hacks 36 | . 3 2 . 4 1 . 4 14 . 3 1 . . 3 1 . . Record 8 | . . . . . . . . 8 . . . . . . . . . Part Schematic 1 | . . . . . . . 1 . . . . . . . . . . Robot Analysis 7 | . . . . 1 . . . 6 . . . . . . . . . Prototype ID Bank 5 | . 1 . . 2 1 . 1 . . . . . . . . . . Open Door 1 | . . . . . . . . . . 1 . . . . . . . Open DSF 1 | . . . . . . . . . . . . . . . 1 . . Level Access Points 1 | . . . . . . . . . . . . . . 1 . . . Branch Access Points 2 | . . . . 1 . . 1 . . . . . . . . . . Emergency Access Points 1 | . . . . . . . 1 . . . . . . . . . . Terminal Index 2 | . 1 . . . . . . . . . . . . 1 . . . Recycling Unit Index 1 | . . . . . . . . . . . . . . 1 . . . Unreport Threat 4 | . 1 1 . . . . . . . 2 . . . . . . . Locate Traps 1 | . . . . . . . . . . . 1 . . . . . . Hauler Manifests 1 | . . 1 . . . . . . . . . . . . . . . Fabricator Hacks . | . . . . . . . . . . . . . . . . . . Repair Station Hacks 19 | . . 6 . 4 . . . . . 3 . . . 6 . . . Scan Component 10 | . . 3 . 2 . . . . . 2 . . . 3 . . . Repair 9 | . . 3 . 2 . . . . . 1 . . . 3 . . . Recycling Unit Hacks . | . . . . . . . . . . . . . . . . . . Scanalyzer 5 | . . . . 5 . . . . . . . . . . . . . Insert Component 2 | . . . . 2 . . . . . . . . . . . . . Analyze 3 | . . . . 3 . . . . . . . . . . . . . Garrison Access Hacks 2 | . . . . 1 1 . . . . . . . . . . . . Seal Access 2 | . . . . 1 1 . . . . . . . . . . . . Unauthorized Hacks 42 | . 8 3 . 7 . . 7 . 4 4 2 . . 5 2 . . Terminals 24 | . 7 3 . 7 . . 1 . . . 1 . . 3 2 . . Botnet 12 | . 2 2 . 2 . . 1 . . . 1 . . 2 2 . . Skim 12 | . 5 1 . 5 . . . . . . . . . 1 . . . Fabricators . | . . . . . . . . . . . . . . . . . . Repair Stations 1 | . . . . . . . . . . . . . . 1 . . . Mechanics 1 | . . . . . . . . . . . . . . 1 . . . Recycling Units 17 | . 1 . . . . . 6 . 4 4 1 . . 1 . . . Tunnel 7 | . 1 . . . . . 6 . . . . . . . . . . Fedlink 10 | . . . . . . . . . 4 4 1 . . 1 . . . Scanalyzers . | . . . . . . . . . . . . . . . . . . Garrison Access . | . . . . . . . . . . . . . . . . . . Data Cores Recovered 3 | . . . . 1 . . . . . . . . . 2 . . . Used . | . . . . . . . . . . . . . . . . . . Hacking Detections 42 | . 7 5 . 6 2 4 4 . 1 3 2 1 . 5 2 . . Full Trace Events 3 | . 1 1 . . . . . . . 1 . . . . . . . Feedback Events . | . . . . . . . . . . . . . . . . . . Feedback Blocked . | . . . . . . . . . . . . . . . . . . Robot Schematics Acquired . | . . . . . . . . . . . . . . . . . . Robots Built . | . . . . . . . . . . . . . . . . . . Authchips . | . . . . . . . . . . . . . . . . . . Time . | . . . . . . . . . . . . . . . . . . Total Robot Build Rating . | . . . . . . . . . . . . . . . . . . Part Schematics Acquired 2 | . . . . 1 . . 1 . . . . . . . . . . Parts Built . | . . . . . . . . . . . . . . . . . . Authchips . | . . . . . . . . . . . . . . . . . . Time . | . . . . . . . . . . . . . . . . . . Total Part Build Rating . | . . . . . . . . . . . . . . . . . . Parts Repaired 8 | . . 3 . 2 . . . . . . . . . 3 . . . Time 549 | . . 90 . 120 . . . . . 70 . . . 269 . . . Parts Recycled . | . . . . . . . . . . . . . . . . . . Recycled Matter . | . . . . . . . . . . . . . . . . . . Retrieved Matter . | . . . . . . . . . . . . . . . . . . Retrieved Components . | . . . . . . . . . . . . . . . . . . Parts Scanalyzed 1 | . . . . 1 . . . . . . . . . . . . . Part Schematics Acquired 1 | . . . . 1 . . . . . . . . . . . . . Parts Damaged . | . . . . . . . . . . . . . . . . . . Bothacking | -11 -10 -9 -9 -8 -7 -7 -7 -7 -5 -4 -4 -4 -4 -3 -2 -2 -1 ------------ Run | Yrd Mat Mat Min Mat Fac Sto Rec Scr Fac Fac Ext Cet Arc Res Res DSF Acc Used RIF Installer . | . . . . . . . . . . . . . . . . . . Robots Hacked . | . . . . . . . . . . . . . . . . . . Non-combat . | . . . . . . . . . . . . . . . . . . Combat . | . . . . . . . . . . . . . . . . . . Robot Hacks Applied . | . . . . . . . . . . . . . . . . . . Relay Couplers Released 4 | . . . . . . . . . . . . . . 4 . . . Machine Destruction 1 | . . . . . . . . . . . . . . 1 . . . Programmers 3 | . . . . . . . . . . . . . . 3 . . . Fabnet Peak Effective % . | . . . . . . . . . . . . . . . . . . Robots Rewired 7 | . . . . . . . . . . . 7 . . . . . . Allies Hacked 1 | . . . . . . . . . . . . . . 1 . . . Hacks Repelled . | . . . . . . . . . . . . . . . . . . Allies | -11 -10 -9 -9 -8 -7 -7 -7 -7 -5 -4 -4 -4 -4 -3 -2 -2 -1 -------- Run | Yrd Mat Mat Min Mat Fac Sto Rec Scr Fac Fac Ext Cet Arc Res Res DSF Acc Total Allies 20 | . . . 2 . . . . . . . 13 5 . . . . . Largest Group 13 | . . . 2 . . . . . . . 13 10 10 8 . . . Highest-Rated Group 817 | . . . 54 . . . . . . . 714 817 817 623 . . . Highest-Rated Ally 159 | . . . 31 . . . . . . . 159 150 147 96 . . . Total Orders . | . . . . . . . . . . . . . . . . . . Ally Attacks 338 | . . . 9 . . . . . . . 173 32 20 104 . . . Total Damage 9227 | . . . 149 . . . . . . . 3772 611 772 3923 . . . Kills 54 | . . . 1 . . . . . . . 20 3 5 25 . . . Allies Corrupted 3 | . . . . . . . . . . . . . . 3 . . . Allies Melted 1 | . . . 1 . . . . . . . . . . . . . . Intel | -11 -10 -9 -9 -8 -7 -7 -7 -7 -5 -4 -4 -4 -4 -3 -2 -2 -1 ------- Run | Yrd Mat Mat Min Mat Fac Sto Rec Scr Fac Fac Ext Cet Arc Res Res DSF Acc Active Infowar (turns) 14145 | . 896 264 . 1211 . 1 . . 630 1614 2247 341 4242 2697 . . 2 Optics 9735 | . . . . . . . . . . 208 2247 341 4242 2697 . . . Sensors 181 | . . . . . . . . . . . . . . 181 . . . IFF 246 | . . . . . . . . . . 246 . . . . . . . Terrain 1 | . . . . 1 . . . . . . . . . . . . . Structural 2370 | . 896 264 . 1210 . . . . . . . . . . . . . Traps 1 | . . . . . . 1 . . . . . . . . . . . Machine Analysis 2036 | . . . . . . . . . 630 1406 . . . . . . . Jamming 2059 | . . . . . . . . . 436 234 . . . 1389 . . . ECM 2 | . . . . . . . . . . . . . . . . . 2 Robot Analysis Total 7 | . . . . 1 . . . 6 . . . . . . . . . Derelict Logs Recovered 1 | . . . 1 . . . . . . . . . . . . . . Drone Launches . | . . . . . . . . . . . . . . . . . . Drone Recoveries . | . . . . . . . . . . . . . . . . . . Exploration | -11 -10 -9 -9 -8 -7 -7 -7 -7 -5 -4 -4 -4 -4 -3 -2 -2 -1 ------------- Run | Yrd Mat Mat Min Mat Fac Sto Rec Scr Fac Fac Ext Cet Arc Res Res DSF Acc Turns Passed 22025 | 5 990 692 1547 2409 796 511 1026 1749 631 1785 2247 341 4242 2706 28 193 127 Spaces Moved 7871 | 2 502 298 423 867 387 129 507 915 318 738 1064 122 533 740 53 121 152 Core 351 | . . . . . . . . . . . . . 109 3 53 34 152 Treads 3884 | 2 502 40 423 867 286 . . . . . 486 122 424 732 . . . Legs 2435 | . . . . . 8 129 507 915 318 471 . . . . . 87 . Wheels 1201 | . . 258 . . 93 . . . . 267 578 . . 5 . . . Hover . | . . . . . . . . . . . . . . . . . . Flight . | . . . . . . . . . . . . . . . . . . Fastest Speed 50 | 160 160 125 160 160 130 120 190 190 120 120 122 168 168 50 50 50 50 Average Speed 206 | 160 160 130 160 214 153 189 190 190 136 150 151 168 726 197 50 114 51 Slowest Speed 2900 | 160 160 160 160 240 260 190 190 190 190 330 230 168 2900 245 50 140 250 Overloaded Moves . | . . . . . . . . . . . . . . . . . . Propulsion Burnouts . | . . . . . . . . . . . . . . . . . . Robots Hopped . | . . . . . . . . . . . . . . . . . . Potential Cave-ins 11 | . . . . . . . . . 2 8 . . . 1 . . . Cave-ins Triggered 1 | . . . . . . . . . . . . . . 1 . . . Exploration Rate (%) 47 | 1 73 25 96 61 13 23 97 73 11 16 76 68 97 29 2 86 6 Regions Visited 17 Branch Regions 7 Pre-discovered Areas 10 | . 2 . . 1 . . 6 . 1 . . . . . . . . Known Exits Taken 7 | . 1 . 1 . 1 1 . . . 1 . . . 1 1 . . Unknown Exits Taken 9 | 1 . 1 . 1 . . 1 1 1 . 1 1 1 . . . . Scrap Searched 5 | . . . 2 . . . . 3 . . . . . . . . . Spaces Dug 107 | . . . . . 25 4 . . 21 34 4 . . 18 . 1 . Terrain Destroyed 956 | . . 11 . . 25 6 2 . 42 226 126 . . 517 . 1 . Melee 76 | . . . . . 17 3 . . 17 16 4 . . 18 . 1 . Projectile 154 | . . . . . . 3 2 . 9 79 17 . . 44 . . . AOE 725 | . . 11 . . 8 . . . 16 131 104 . . 455 . . . Terrain Rammed . | . . . . . . . . . . . . . . . . . . Walls Destroyed . | . . . . . . . . . . . . . . . . . . Machines Disabled . | . . . . . . . . . . . . . . . . . . Actions | -11 -10 -9 -9 -8 -7 -7 -7 -7 -5 -4 -4 -4 -4 -3 -2 -2 -1 --------- Run | Yrd Mat Mat Min Mat Fac Sto Rec Scr Fac Fac Ext Cet Arc Res Res DSF Acc Total 12095 | 3 601 531 1277 1320 523 338 531 931 423 1081 1467 250 864 1561 53 166 175 Wait 2557 | . 16 146 836 267 31 145 . . 40 75 139 101 286 464 . 11 . Move 7854 | 1 501 297 422 866 386 128 506 914 317 737 1063 121 532 739 52 120 152 Hop . | . . . . . . . . . . . . . . . . . . Pick Up 176 | . 15 16 1 22 10 8 2 8 1 17 25 7 6 32 . 5 1 Fast Attach 99 | . 1 5 . 2 8 6 . . 3 33 14 . 4 6 1 14 2 Attach 75 | . 2 2 2 6 2 1 . . 4 12 6 . 2 31 . 2 3 Detach 11 | . . . . . . 1 . . . 3 1 . 1 5 . . . Swap 168 | 2 5 8 1 19 12 6 1 2 9 22 23 6 4 48 . . . Drop 238 | . 9 21 . 30 19 13 2 7 6 30 43 9 10 29 . 10 . Fire 657 | . 52 36 15 108 36 12 9 . 21 132 76 5 1 153 . . 1 Melee 204 | . . . . . 19 10 11 . 22 20 38 1 18 45 . 4 16 Ram 4 | . . . . . . . . . . . . . . 4 . . . Kick . | . . . . . . . . . . . . . . . . . . Crush . | . . . . . . . . . . . . . . . . . . Escape Stasis 5 | . . . . . . . . . . . . . . 5 . . . Rewire 39 | . . . . . . . . . . . 39 . . . . . . Trap . | . . . . . . . . . . . . . . . . . . Miscellaneous 8 | . . . . . . 8 . . . . . . . . . . . Route ------- -11/Scrapyard -10/Materials (discovered 4 exits: *Mat x3 / *Min) -9/Materials -9/Mines (discovered 2 exits: *Mat x2) -8/Materials -7/Factory -7/Storage (discovered 2 exits: Fac / *Rec) -7/Recycling (discovered 2 exits: *Fac / *Scr) -7/Scraptown -5/Factory -4/Factory (discovered 3 exits: *Res x2 / *Ext) -4/Extension (discovered 2 exits: *Res / *Cet) -4/Cetus -4/Archives (discovered 3 exits: *Res / [*Hub x2]) -3/Research (discovered 3 exits: *Res x3) -2/Research -2/DSF -1/Access History --------- Turn | Location | Event 4 | -11/Scrapyard | Discovered new exit (range 1) 6 | -11/Scrapyard | Entered Materials 194 | -10/Materials | Discovered new exit (range 16) 303 | -10/Materials | Build established: Mutant 539 | -10/Materials | Discovered new exit (range 11) 585 | -10/Materials | Identified exit to Materials 585 | -10/Materials | Identified exit to Mines 659 | -10/Materials | Learned location of 1 exit from Storage 693 | -10/Materials | Learned location of 2 exits from Mines 704 | -10/Materials | Learned location of 2 exits from Mines 723 | -10/Materials | Loaded intel: 8 terminal locations 764 | -10/Materials | Core integrity fell below 50% 996 | -10/Materials | Entered another Materials area 996 | -9/Materials | Evolved 2 slots: Propulsion x1, Weapon x1 1062 | -9/Materials | Repaired Lgt. Treads 1117 | -9/Materials | Repaired Lgt. Nuclear Core 1144 | -9/Materials | Repaired Lgt. Treads 1587 | -9/Materials | Build established: Tank 1670 | -9/Materials | Discovered new exit (range 12) 1688 | -9/Materials | Entered Mines 1689 | -9/Mines | Assembled infested the area 1689 | -9/Mines | Identified exit to Materials 1694 | -9/Mines | Assisted by a Guerilla fighting off Assembled 3235 | -9/Mines | Entered Materials 3235 | -8/Materials | Evolved 2 slots: Utility x2 3539 | -8/Materials | Build established: Scavenger-Tank 3578 | -8/Materials | Repaired Enh. Autogun 3639 | -8/Materials | Repaired Enh. Autogun 4363 | -8/Materials | Discovered new exit (range 6) 4745 | -8/Materials | Build established: Scavenger-Gunner 5249 | -8/Materials | Learned 2 Storage zone layouts 5367 | -8/Materials | Learned 2 Storage zone layouts 5411 | -8/Materials | Learned Factory emergency access door positions 5468 | -8/Materials | Learned location of 1 exit from Storage 5481 | -8/Materials | Learned Storage trap positions 5506 | -8/Materials | Learned location of 2 exits from Lower Caves 5541 | -8/Materials | Learned Storage terminal intel 5586 | -8/Materials | Learned Storage trap positions 5644 | -8/Materials | Entered Factory 5644 | -7/Factory | Evolved 2 slots: Power x1, Propulsion x1 5645 | -7/Factory | Identified exit to Storage 6092 | -7/Factory | Build established: Scavenger-Mutant 6440 | -7/Factory | Entered Storage 6441 | -7/Storage | Identified exit to Recycling 6441 | -7/Storage | Identified exit to Factory 6443 | -7/Storage | Loaded intel: 21 trap records 6444 | -7/Storage | Loaded intel: 13 terminal locations 6662 | -7/Storage | Build established: Mutant 6717 | -7/Storage | Found Prototype Launcher 6740 | -7/Storage | Identified Rocket Array 6943 | -7/Storage | Used back door to open Recycling access 6951 | -7/Storage | Entered Recycling 7450 | -7/Recycling | Discovered new exit (range 16) 7932 | -7/Recycling | Scanned before Scraplab entrance 7958 | -7/Recycling | Entered Scraplab 7974 | -7/Recycling | Discovered new exit (range 2) 7977 | -7/Recycling | Entered Scraptown 7977 | -7/Scraptown | System corruption cleaned by C-Scrubber 8259 | -7/Scraptown | Visited Spacefarers 8299 | -7/Scraptown | Visited Symbiants 8312 | -7/Scraptown | Visited Comm Corps 8323 | -7/Scraptown | Visited Shadow of the Wyrm 8358 | -7/Scraptown | Visited UFD Registry 8358 | -7/Scraptown | Registered with UFD as "Flashmech" 8371 | -7/Scraptown | Heard Great Nut preacher, LISTEN AND RECITE! 8394 | -7/Scraptown | Visited Junk Repository 8462 | -7/Scraptown | Visited SPCMW 8755 | -7/Scraptown | Visited Curators Association 8781 | -7/Scraptown | Visited Scrap Suit Storage 8810 | -7/Scraptown | Visited Derelict Rescue Squad 8826 | -7/Scraptown | Found DRS Beacon 9024 | -7/Scraptown | Visited Science Guys 9097 | -7/Scraptown | Visited Scrapoid Pod Storage 9126 | -7/Scraptown | Visited Analyses Database 9158 | -7/Scraptown | Visited A0-MCA Data Center 9170 | -7/Scraptown | Given an A- rating by A0-MCA 9175 | -7/Scraptown | Found A0-MCA's Component Scanner 9227 | -7/Scraptown | Found Scrapoid Pod 9268 | -7/Scraptown | Visited Abandonware Association 9287 | -7/Scraptown | Learned abandonware demo "REPAIR.EXE" 9287 | -7/Scraptown | Learned abandonware demo "MELTYB.EXE" 9337 | -7/Scraptown | Visited Chapter 10 9614 | -7/Scraptown | Met Optimus 9614 | -7/Scraptown | Accepted into 0bPrime 9717 | -7/Scraptown | Discovered new exit (range 5) 9726 | -7/Scraptown | Entered Factory 9726 | -5/Factory | Evolved 4 slots: Propulsion x1, Utility x2, Weapon x1 9819 | -5/Factory | Loaded intel: 8 recycling unit locations 10013 | -5/Factory | Learned location of Protoforge (-3) 10233 | -5/Factory | Destroyed 7 combat bots 10249 | -5/Factory | Build established: Gunner 10311 | -5/Factory | Discovered new exit (range 12) 10357 | -5/Factory | Entered another Factory area 10357 | -4/Factory | Evolved 2 slots: Propulsion x1, Utility x1 10358 | -4/Factory | Identified exit to Extension 10389 | -4/Factory | Loaded intel: 8 recycling unit locations 10437 | -4/Factory | Discovered new exit (range 10) 10480 | -4/Factory | Lost 7 parts (1p3n1u2w) 10545 | -4/Factory | Garrison activated, responded to threat 10575 | -4/Factory | Destroyed 7 combat bots 10754 | -4/Factory | Lost 4 parts (4n) 10785 | -4/Factory | Noticed a derelict Sapper rigging charges 11123 | -4/Factory | Lost 3 parts (1n1u1w) 11483 | -4/Factory | Build established: Scavenger-Tank 11539 | -4/Factory | Lost 3 parts (2u1w) 11603 | -4/Factory | Discovered new exit (range 9) 11626 | -4/Factory | Lost 3 parts (3n) 11890 | -4/Factory | Spotted B-86 Titan 11891 | -4/Factory | Core integrity fell below 50% 11899 | -4/Factory | Destroyed B-86 Titan 12107 | -4/Factory | First assault squad dispatched 12142 | -4/Factory | Entered Extension 12592 | -4/Extension | Disrupted transfer network 12672 | -4/Extension | Build established: Scavenger-Gunner 12954 | -4/Extension | Loaded intel: 1 recycling unit location 13134 | -4/Extension | Scrapoid Pod released 04E05-D (x5) 13511 | -4/Extension | Rescued A7 13723 | -4/Extension | Build established: Commander-Tank 13856 | -4/Extension | Spotted B-86 Titan 13869 | -4/Extension | Spotted B-86 Titan 13872 | -4/Extension | Allies destroyed B-86 Titan 13886 | -4/Extension | Allies destroyed B-86 Titan 13917 | -4/Extension | Lost 3 allies 14142 | -4/Extension | First assault squad dispatched 14252 | -4/Extension | Discovered new exit (range 22) 14252 | -4/Extension | Discovered new exit (range 22) 14357 | -4/Extension | Lost 3 allies 14389 | -4/Extension | Entered Cetus 14389 | -4/Cetus | Accompanied by 7 allies (A7) 14394 | -4/Cetus | Acquired a Cetus Manufacturing Module code from A7 14403 | -4/Cetus | Spotted Cetus Guard 14405 | -4/Cetus | Spotted Cetus Guard 14405 | -4/Cetus | Spotted Cetus Guard 14409 | -4/Cetus | Spotted Cetus Guard 14418 | -4/Cetus | Allies destroyed Cetus Guard 14421 | -4/Cetus | Allies destroyed Cetus Guard 14425 | -4/Cetus | Destroyed Cetus Guard 14429 | -4/Cetus | Allies destroyed Cetus Guard 14541 | -4/Cetus | Started Cetus Manufacturing Module 14561 | -4/Cetus | Escorted A7 to Cetus Mainframe 14566 | -4/Cetus | Manufactured an Enhanced Grunt 14591 | -4/Cetus | Manufactured an Enhanced Grunt 14616 | -4/Cetus | Manufactured an Enhanced Grunt 14641 | -4/Cetus | Manufactured an Enhanced Grunt 14666 | -4/Cetus | Manufactured an Enhanced Grunt 14688 | -4/Cetus | Discovered new exit (range 23) 14730 | -4/Cetus | Entered Archives 14730 | -4/Archives | Accompanied by 10 allies (A7) 14735 | -4/Archives | Received a hacking code to weaken MAIN.C 14783 | -4/Archives | Discovered new exit (range 23) 14800 | -4/Archives | Discovered new exit (range 23) 14821 | -4/Archives | Discovered new exit (range 22) 18972 | -4/Archives | Entered Research 18972 | -3/Research | Accompanied by 8 allies 18972 | -3/Research | Evolved 2 slots: Power x1, Utility x1 19136 | -3/Research | Repaired Centrium Heavy Treads 19236 | -3/Research | Repaired Adv. Variable Charge Gun 19927 | -3/Research | Repaired Imp. Force Field 20269 | -3/Research | Cargo convoy interrupted 20302 | -3/Research | Destroyed 12 combat bots 20317 | -3/Research | Build established: Hacker-Tank 20326 | -3/Research | Lost 6 allies 20472 | -3/Research | First assault squad dispatched 20758 | -3/Research | Build established: Scavenger-Tank 20793 | -3/Research | Identified exit to Research 20856 | -3/Research | System corruption reached 10% 20894 | -3/Research | High security lockdown imminent 20915 | -3/Research | Destroyed 8 combat bots 20940 | -3/Research | Loaded intel: 5 recycling unit locations 20959 | -3/Research | Garrison activated, responded to threat 20974 | -3/Research | High security lockdown engaged 20997 | -3/Research | Destroyed 7 combat bots 21010 | -3/Research | Spotted B-86 Titan 21233 | -3/Research | Destroyed 8 combat bots 21265 | -3/Research | Spotted Investigator 21270 | -3/Research | Scanned by Researcher 21288 | -3/Research | Destroyed Investigator 21389 | -3/Research | Spotted Executioner 21394 | -3/Research | Destroyed Executioner 21462 | -3/Research | Destroyed 48 combat bots 21518 | -3/Research | Spotted Striker 21611 | -3/Research | System corruption reached 30% 21660 | -3/Research | Core integrity fell below 50% 21670 | -3/Research | Crushed by falling debris 21670 | -3/Research | Core integrity fell below 20% 21678 | -3/Research | Entered another Research area 21678 | -2/Research | Evolved 2 slots: Propulsion x2 21700 | -2/Research | Lost 17 parts (1p6n6u4w) 21706 | -2/Research | Identified exit to DSF 21706 | -2/Research | Entered DSF 21731 | -2/DSF | Additional patrols routed to DSF 21860 | -2/DSF | Discovered new exit (range 15) 21899 | -2/DSF | Identified exit to Access 21899 | -2/DSF | Entered Access 21899 | -1/Access | Evolved 2 slots: Utility x2 21930 | -1/Access | Lost 6 parts (4n2u) 21969 | -1/Access | Spotted B-99 Colossus 21970 | -1/Access | Spotted B-99 Colossus 21986 | -1/Access | Core integrity fell below 50% 22013 | -1/Access | Lost 6 parts (5u1w) 22013 | -1/Access | Core integrity fell below 20% 22026 | -1/Access | Destroyed by B-99 Colossus with Multirail Last Messages --------------- 21980_ Critical hit (Blast). 21980_ Penetrated by Slug. 21980_ Slug penetrates Sealed Heavy Doors. 21980_ Penetrated by Slug. 21980_ Slug penetrates Sealed Heavy Doors. 21981_ Acquired 4 matter. 21982_ Penetrated by Slug. 21982_ Slug penetrates Sealed Heavy Doors. 21982_ Enh. Nova Cannon destroyed. 21982_ Penetrated by Slug. 21982_ Slug penetrates Sealed Heavy Doors. 21984_ Penetrated by Slug. 21984_ Slug penetrates Sealed Heavy Doors. 21995_ Acquired 2 matter. 21998_ Slug penetrates Sealed Heavy Doors. 22013_ Adv. Melee Analysis Suite destroyed. 22015_ Slug penetrates Sealed Heavy Doors. 22023_ System corrupted: Lance rejected. 22025_ Acquired Lance. 22026_ Slug penetrates Sealed Heavy Doors. Map ----- +----------------------------------------------------+ | ??????????????????????????# #?????????????????? | | ??????????????????????????# #?????????????????? | | ??????????????????????????# #?????????????????? | | ??????????????????????????# #?????????????????? | | ??????????????????????????" #?????????????????? | | ??????????????????????????# % #?????????????????? | | ??????????????????????????# #?????##??????????? | | ??????????????????????????# #???? ? #???????? | | ????????????# ######+### #??? #???????? | | ????????????# "?? #???????? | | ????????????# #?? %#???????? | | ????????????# % # #???????? | | ????????????# + #???????? | | ????????????? ##########% # ""T"" #???????? | | ?????????????????????????## # ?""""???????????? | | ???????????????????????###" "###?##???????????? | | ???????????????????????# % #??????????????? | | ???????????????????????# #??????????????? | | ???????????????????????# #??????????????? | | ???????????????????????# % BB #??????????????? | | ???????????????????????#% BB #??????????????? | | ???????????????????????# % #??????????????? | | ???????????????????????# % %p #??????????????? | | ???????????????????????#"""p""""""#??????????????? | | ????????????????????????"" ""????????????????????? | | ????????????????????????"@""?????????????????????? | | ????????????????????????"""??????????????????????? | | ?????????????????????????????????????????????????? | | ?????????????????????????????????????????????????? | | ?????????????????????????????????????????????????? | | ?????????????????????????????????????????????????? | | ?????????????????????????????????????????????????? | | ?????????????????????????????????????????????????? | | ?????????????????????????????????????????????????? | | ?????????????????????????????????????????????????? | | ?????????????????????????????????????????????????? | | ?????????????????????????????????????????????????? | | ?????????????????????????????????????????????????? | | ?????????????????????????????????????????????????? | | ?????????????????????????????????????????????????? | | ?????????????????????????????????????????????????? | | ?????????????????????????????????????????????????? | | ?????????????????????????????????????????????????? | | ?????????????????????????????????????????????????? | | ?????????????????????????????????????????????????? | | ?????????????????????????????????????????????????? | | ?????????????????????????????????????????????????? | | ?????????????????????????????????????????????????? | | ?????????????????????????????????????????????????? | | ?????????????????????????????????????????????????? | +----------------------------------------------------+ Best States ------------- Heat Dissipation 84 Coolant Potential 120 Energy Generation 57 Energy Capacity 1000 Matter Stores 300 Matter Capacity 300 Sight Range 23 Robot Scan Range 16 Terrain Scan Density 10 Jamming Range 12 Base Temperature (-) 200 Armor Coverage 825 Resistance: KI 30 Resistance: TH 30 Core Shielding 30 Weapon Cycling 15 Phase Shifting 10 Evasion (%) 65 Targeting Accuracy 8 Melee Accuracy 32 Armor Integrity Analysis 40 Recoil Reduction 6 Offensive Hacking 36 Defensive Hacking 14 Authchip Count 1 Item Schematics ----------------- Imp. Assault Rifle | -8/Materials | Scanalyzed Adv. Hacking Suite | -7/Recycling | Hacked Robot Schematics ------------------ None Fabricated ------------ Nothing Repaired ---------- Lgt. Treads | 27% | -9/Materials Lgt. Nuclear Core | 30% | -9/Materials Lgt. Treads | 69% | -9/Materials Enh. Autogun | 21% | -8/Materials Enh. Autogun | 40% | -8/Materials Centrium Heavy Treads | 76% | -3/Research Adv. Variable Charge Gun | 68% | -3/Research Imp. Force Field | 71% | -3/Research Alien Tech Used ----------------- None Achievements -------------- Boltbath Challenges ------------ None Game ------ Seed SubatomicLayeredBooster Manual? 0 Play Time 03:12:00 Cumulative 254.1 hours Start 2025.06.11 @ 16:17:16 End 2025.06.11 @ 22:04:25 Sessions 2 Manual Loads 0 Difficulty Rogue Special Mode None Game No. 150 Rogue 150 Adventurer 0 Explorer 0 Win Type - Total 11 Types 11/0/0/0/0/0/0/0/0/0 Lore% 71 Gallery% 68 Achievement% 61 Wizard Run 0 Options --------- Layout 1 ASCII 0 Keyboard 0 Movement Numpad Keybinds 0 Fullscreen 1 Font 24/Smallcaps Map View 50x35 Zoom Use 0% Tactical HUD 1 Map Filters NONE Filters NONE Steam 1 RUN: f3688fb3-d0e8-4cb8-8e20-0caec5ebc22a